Cogmind - Beta 13 @@@ ROGUE MODE // 2024.04.03 @ 14:52:48 Player: engineer Result: Destroyed by 3H-FN5(R) with Subdweller Machine Gun Performance ------------- Evolutions (0) 0 Regions Visited (2) 400 Robots Destroyed (13) 65 Value Destroyed (318) 318 Prototype IDs (2) 40 Alien Tech Used (0) 0 Bonus (0) 0 TOTAL SCORE: 823 Bonus ------- None Cogmind --------- Core Integrity 0/250 Matter 300/300 Energy 160/160 System Corruption 0% Temperature Cool (0) Movement Walking (120) Location -10/Subcaves Parts ------- > --- POWER (1) -------- Light Nuclear Core > --- PROPULSION (2) --- Aluminum Leg Aluminum Leg > --- UTILITY (2) ------ Small Storage Unit Signal Interpreter > --- WEAPON (2) ------- Assault Rifle Light Assault Rifle > --- INVENTORY (8) ---- Light Nuclear Core Visual Processing Unit Sensor Array Signal Interpreter Transport Network Coupler Scrap Shield Light Assault Rifle Peak State ------------ > --- POWER ------------ Light Nuclear Core > --- PROPULSION ------- Aluminum Leg Aluminum Leg > --- UTILITY ---------- Small Storage Unit Signal Interpreter > --- WEAPON ----------- Particle Gun Assault Rifle > --- INVENTORY -------- Aluminum Leg Structural Scanner Sensor Array Weapon Shielding [Rating: 10] Favorites ----------- Power Ion Engine Engine Ion Engine Power Core Light Nuclear Core Propulsion Aluminum Leg Leg Aluminum Leg Utility Small Storage Unit Storage Small Storage Unit Processor Signal Interpreter Weapon Assault Rifle Energy Gun Particle Gun Ballistic Gun Assault Rifle Special Weapon Mining Laser Build | -11 -10 -10 ------- Run | Yrd Mat Sub Slots Evolved . | . . . Power . | . . . Propulsion . | . . . Utility . | . . . Weapon . | . . . Parts Attached 22 | 6 16 . Power 4 | 1 3 . Engine 2 | 1 1 . Core 2 | . 2 . Reactor . | . . . Propulsion 5 | 2 3 . Treads . | . . . Leg 5 | 2 3 . Wheel . | . . . Hover . | . . . Flight . | . . . Utility 2 | 1 1 . Device . | . . . Storage 1 | 1 . . Processor 1 | . 1 . Hackware . | . . . Protection . | . . . Artifact . | . . . Weapon 11 | 2 9 . Energy Gun 1 | . 1 . Energy Cannon . | . . . Ballistic Gun 8 | 2 6 . Ballistic Cannon . | . . . Launcher . | . . . Special Weapon 2 | . 2 . Impact Weapon . | . . . Slashing Weapon . | . . . Piercing Weapon . | . . . Special Melee Weapon . | . . . Unidentified Prototypes . | . . . Parts Lost 5 | . 5 . Power 1 | . 1 . Propulsion 1 | . 1 . Utility . | . . . Weapon 3 | . 3 . Highest Loss Streak 5 | . 5 . To Critical Strikes . | . . . Average Slot Usage (%) 94 | . 93 100 Engine 9 | . 10 . Core 3 | . 2 14 Leg 27 | . 27 28 Storage 14 | . 14 14 Processor 9 | . 9 14 Ballistic Gun 25 | . 25 28 Special Weapon 1 | . 1 . Naked Turns . | . . . Heaviest Build 15 | 14 15 13 Greatest Support 20 | 20 20 20 Greatest Overweight (x) 3 | 3 . . Average Overweight (x) . | . . . Largest Inventory Capacity 8 | 8 8 8 Average Capacity 7 | 7 8 8 Most Carried 8 | 2 8 8 Average Carried 4 | 1 6 7 Final Capacity 8 | 8 8 8 Final Carried 8 | 2 8 8 Class Distribution -------------------- 98% | Mutant Dominant Class ---------------- Mutant | -10/Materials Mutant | -10/Subcaves Resources | -11 -10 -10 ----------- Run | Yrd Mat Sub Matter Collected 754 | 263 459 32 Remotely . | . . . Salvage Created 542 | 95 447 . Parts 24 | 3 21 . Haulers Intercepted 1 | . 1 . Recyclers Shooed 1 | . 1 . Parts Field Recycled . | . . . Retrieved Matter . | . . . Parts Self-Destructed . | . . . Prevented . | . . . Kills | -11 -10 -10 ------- Run | Yrd Mat Sub Combat Hostiles Destroyed 10 | . 10 . Guns 10 | . 10 . Classes Destroyed 5 | 1 4 . Hauler 1 | . 1 . Recycler 1 | 1 . . Watcher 1 | . 1 . Swarmer 3 | . 3 . Grunt 7 | . 7 . Best Kill Streak 3 | 1 3 . Combat Bots Only 3 | . 3 . Max Kills in Single Turn 1 | 1 1 . Gunslinging . | . . . Exploded . | . . . Melee . | . . . Uniques/NPCs Destroyed . | . . . Combat | -11 -10 -10 -------- Run | Yrd Mat Sub Hostile Shots Fired 108 | . 96 12 Missed 33 | . 27 6 Damage Taken 1037 | . 845 192 Core 265 | . 116 149 Absorbed by Shields . | . . . Regen/Repaired (Parts) 148 | . 148 . Core Remaining (%) 100 | 100 . . Volleys Fired 91 | 1 86 4 Largest 2 | 2 2 2 Hottest 100 | 40 100 40 Shots Fired 151 | 2 141 8 Gun 130 | 2 120 8 Cannon . | . . . Launcher . | . . . Special 21 | . 21 . Kinetic 128 | 2 118 8 Thermal 23 | . 23 . Explosive . | . . . Electromagnetic . | . . . Robot Hit Streak 14 | 2 14 6 Robot Miss Streak 4 | . 4 1 Penetration Max . | . . . Secondary Targets 1 | . 1 . Max Gunslinging Chain 1 | . 1 . Shots Hit Robots 82 | 2 73 7 Core Hits 30 | 2 26 2 Critical Kills . | . . . Critical Parts Destroyed . | . . . Critical Strikes . | . . . Melee Attacks . | . . . Impact . | . . . Slashing . | . . . Piercing . | . . . Sneak Attacks . | . . . Combat Hostiles . | . . . Follow-up Attacks . | . . . Damage Inflicted 1055 | 28 955 72 Guns 1049 | 22 955 72 Cannons . | . . . Explosions . | . . . Melee . | . . . Ramming 6 | 6 . . Kinetic 1034 | 22 940 72 Thermal 15 | . 15 . Explosive . | . . . Electromagnetic . | . . . Impact . | . . . Slashing . | . . . Piercing . | . . . Highest Corruption . | . . . Average Corruption . | . . . Corruption Purged . | . . . Corruption Blocked . | . . . Overload Shots . | . . . Overflow Damage . | . . . Projectiles . | . . . Explosions . | . . . Melee . | . . . Knockbacks . | . . . Impact . | . . . Kinetic . | . . . Secondary . | . . . Self-Inflicted Damage . | . . . Shots . | . . . Rammed . | . . . Targets Rammed 1 | 1 . . Kicked 1 | 1 . . Crushed . | . . . Highest Temperature 142 | . 142 . Average Temperature 53 | . 53 . Received Heat Transfer 456 | . 456 . Siege Activations . | . . . Robots Corrupted . | . . . Combat Hostiles . | . . . Parts Fried . | . . . Impact Corruptions . | . . . Robots Melted . | . . . Combat Hostiles . | . . . Parts Melted . | . . . Heat Transferred 37 | . 37 . Parts Sabotaged . | . . . Parts Stolen . | . . . Parts Stripped . | . . . Power Chain Reactions . | . . . Alert | -11 -10 -10 ------- Run | Yrd Mat Sub Peak Influence 154 | 5 154 . Initial 3 | . 3 . Average 36 | . 63 . Maximum Alert Level . | . . . Low Security (%) 100 | 100 100 . Level 1 . | . . . Level 2 . | . . . Level 3 . | . . . Level 4 . | . . . Level 5 . | . . . High Security . | . . . Max Security . | . . . Squads Dispatched 2 | . 2 . Investigation 1 | . 1 . Extermination . | . . . Reinforcement 1 | . 1 . Assault . | . . . Garrison . | . . . Intercept . | . . . Searches Triggered . | . . . Construction Impeded . | . . . Haulers Reinforced . | . . . Active Scanning Responses . | . . . Cargo Convoy Interrupts . | . . . Stealth | -11 -10 -10 --------- Run | Yrd Mat Sub Distress Signals 1 | . 1 . Communications Jammed . | . . . Distress Signals . | . . . Times Spotted 33 | . 24 9 Peak Tracking Total 8 | . 4 8 Tactical Retreats . | . . . Traps | -11 -10 -10 ------- Run | Yrd Mat Sub Traps Triggered . | . . . Indirectly . | . . . Trap Hack Attempts . | . . . Triggered . | . . . Disarmed . | . . . Reprogrammed . | . . . Reused . | . . . Traps Extracted . | . . . Installed . | . . . Triggered . | . . . Machines | -11 -10 -10 ---------- Run | Yrd Mat Sub Machines Disabled . | . . . Max in Single Turn . | . . . Machines Repaired . | . . . Machines Dismantled . | . . . Machines Sabotaged . | . . . Overloaded Fab Kills . | . . . Hacking | -11 -10 -10 --------- Run | Yrd Mat Sub Machines Accessed 10 | . 10 . Terminals 7 | . 7 . Fabricators . | . . . Repair Stations 1 | . 1 . Recycling Units 2 | . 2 . Scanalyzers . | . . . Garrison Access . | . . . Total Hacks 38 | . 38 . Successful 24 | . 24 . Failed 14 | . 14 . Catastrophic 1 | . 1 . Database Lockouts . | . . . Manual 8 | . 8 . Terminals 20 | . 20 . Fabricators . | . . . Repair Stations 10 | . 10 . Recycling Units 8 | . 8 . Scanalyzers . | . . . Garrison Access . | . . . Terminal Hacks 9 | . 9 . Prototype ID Bank 1 | . 1 . Terminal Index 1 | . 1 . Alert Level 2 | . 2 . Locate Traps 2 | . 2 . Dispatch Records 1 | . 1 . Hauler Manifests 1 | . 1 . Registered Components 1 | . 1 . Fabricator Hacks . | . . . Repair Station Hacks 8 | . 8 . Scan Component 5 | . 5 . Repair 3 | . 3 . Recycling Unit Hacks 7 | . 7 . Report Inventory 5 | . 5 . Retrieve Components 2 | . 2 . Scanalyzer . | . . . Garrison Access Hacks . | . . . Unauthorized Hacks . | . . . Terminals . | . . . Fabricators . | . . . Repair Stations . | . . . Recycling Units . | . . . Scanalyzers . | . . . Garrison Access . | . . . Data Cores Recovered . | . . . Used . | . . . Hacking Detections 9 | . 9 . Full Trace Events 1 | . 1 . Feedback Events . | . . . Feedback Blocked . | . . . Robot Schematics Acquired . | . . . Robots Built . | . . . Authchips . | . . . Time . | . . . Total Robot Build Rating . | . . . Part Schematics Acquired . | . . . Parts Built . | . . . Authchips . | . . . Time . | . . . Total Part Build Rating . | . . . Parts Repaired 3 | . 3 . Time 88 | . 88 . Parts Recycled . | . . . Recycled Matter . | . . . Retrieved Matter . | . . . Retrieved Components 18 | . 18 . Parts Scanalyzed . | . . . Part Schematics Acquired . | . . . Parts Damaged . | . . . Bothacking | -11 -10 -10 ------------ Run | Yrd Mat Sub Used RIF Installer . | . . . Robots Hacked . | . . . Non-combat . | . . . Combat . | . . . Robot Hacks Applied . | . . . Relay Couplers Released . | . . . Fabnet Peak Effective % . | . . . Robots Rewired . | . . . Allies Hacked . | . . . Hacks Repelled . | . . . Allies | -11 -10 -10 -------- Run | Yrd Mat Sub Total Allies . | . . . Largest Group . | . . . Highest-Rated Group . | . . . Highest-Rated Ally . | . . . Total Orders . | . . . Ally Attacks . | . . . Total Damage . | . . . Kills . | . . . Allies Corrupted . | . . . Allies Melted . | . . . Intel | -11 -10 -10 ------- Run | Yrd Mat Sub Robot Analysis Total . | . . . Derelict Logs Recovered . | . . . Drone Launches . | . . . Drone Recoveries . | . . . Exploration | -11 -10 -10 ------------- Run | Yrd Mat Sub Turns Passed 3047 | 1187 1677 183 Spaces Moved 1481 | 431 938 112 Core 6 | 6 . . Treads . | . . . Legs 1475 | 425 938 112 Wheels . | . . . Hover . | . . . Flight . | . . . Fastest Speed 50 | 50 120 120 Average Speed 120 | 120 120 120 Slowest Speed 200 | 200 120 120 Overloaded Moves . | . . . Propulsion Burnouts . | . . . Robots Hopped . | . . . Cave-ins Triggered . | . . . Exploration Rate (%) 51 | 49 97 7 Regions Visited 2 Branch Regions 1 Pre-discovered Areas . | . . . Known Exits Taken 1 | . 1 . Unknown Exits Taken 1 | 1 . . Scrap Searched 2 | . . 2 Spaces Dug 21 | . 21 . Terrain Destroyed 21 | . 21 . Melee . | . . . Projectile 21 | . 21 . AOE . | . . . Terrain Rammed . | . . . Walls Destroyed . | . . . Machines Disabled . | . . . Actions | -11 -10 -10 --------- Run | Yrd Mat Sub Total 2556 | 1095 1306 155 Wait 937 | 655 248 34 Move 1479 | 430 937 112 Hop . | . . . Pick Up 16 | 2 12 2 Fast Attach 12 | 6 6 . Attach 4 | . 4 . Detach . | . . . Swap 6 | . 6 . Drop 10 | . 7 3 Fire 91 | 1 86 4 Melee . | . . . Ram . | . . . Kick 1 | 1 . . Crush . | . . . Escape Stasis . | . . . Rewire . | . . . Trap . | . . . Miscellaneous . | . . . Route ------- -11/Scrapyard -10/Materials (discovered 6 exits: *Mat x3 / *Min x2 / *Sub) -10/Subcaves History --------- Turn | Location | Event 20 | -11/Scrapyard | Discovered new exit (range 13) 1188 | -11/Scrapyard | Entered Materials 1189 | -10/Materials | Build established: Mutant 1456 | -10/Materials | Discovered new exit (range 15) 1592 | -10/Materials | Discovered new exit (range 5) 1709 | -10/Materials | Discovered new exit (range 8) 1740 | -10/Materials | Identified exit to Mines 1842 | -10/Materials | Repaired Assault Rifle 1869 | -10/Materials | Repaired Assault Rifle 1907 | -10/Materials | Repaired Broken Ion Engine 2325 | -10/Materials | Discovered new exit (range 9) 2334 | -10/Materials | Identified exit to Materials 2529 | -10/Materials | Lost 5 parts (1p1n3w) 2533 | -10/Materials | Discovered exit to Materials (range 16) 2826 | -10/Materials | Discovered new exit (range 13) 2864 | -10/Materials | Identified exit to Subcaves 2865 | -10/Materials | Entered Subcaves 2975 | -10/Subcaves | Shifting Twisted Machinery released Riot Gun 2976 | -10/Subcaves | Ambushed by swarm of Subdwellers 2976 | -10/Subcaves | Ambushed by Subdwellers from Twisted Machinery 2976 | -10/Subcaves | Ambushed by Subdwellers from Twisted Machinery 2976 | -10/Subcaves | Ambushed by Subdwellers from Twisted Machinery 2979 | -10/Subcaves | Core integrity fell below 50% 3022 | -10/Subcaves | Core integrity fell below 20% 3031 | -10/Subcaves | Lost 4 allies 3048 | -10/Subcaves | Destroyed by 3H-FN5(R) with Subdweller Machine Gun Last Messages --------------- 02976_ MM-0GR(R) angrily emerges from the Twisted Machinery. 02976_ 3H-FN5(R) angrily emerges from the Twisted Machinery. 02979_ HV Slug penetrates Twisted Machinery. 02980_ 62-6WB(R) emerges from the Twisted Machinery. 02980_ B8-SEW(h) destroyed. 02984_ TE-ZGE(g): "Sorry we're late! Had another grouchy Sub to deal with. Who's the new fellow?" 02988_ TE-ZGE(g) destroyed. 03003_ Subatomizers dissect the Aluminum Leg, destroying it. 03043_ Searching scrap... 03043_ Found Shrapnel Trap. 03043_ Found Piercing Trap. 03043_ Found 17 Matter. 03044_ Acquired 17 matter. 03045_ Searching scrap... 03045_ Found Scrap Shield. 03045_ Found Sub. Power Source. 03045_ Found 34 Matter. 03046_ Acquired 11 matter. 03047_ Acquired 4 matter. Map ----- +----------------------------------------------------+ | ????????????????????????????????????# ## #? | | ????????????????????????????????????# ## ##? | | ????????????????????????????????????## ### ##?? | | ????????????????????????????????????# ### ##??? | | ????????????????????????????????????# ####???? | | ????????????????????????????????????## ##?????? | | ?????????????????????????????????????# ## #?????? | | ?????????????????????????????????????#### #?????? | | ???????????????????????????????????????## #?????? | | ???????????????????????????????????????# #?????? | | ???????????????????????????????????????# ##?????? | | ?????????????????????????????????#####?# #??????? | | ????????????????????????????????## # ### #??????? | | ???????????????????????????????## ###????? | | ???????????????????????????????# ##???? | | ???????????????????????????????## # # # ##??? | | ???????????????????????????????# ####### ##?? | | ???????????????????????????????# #??????# ##? | | ???????????????????????????????## ##????## #? | | ????????????????????????????????# #????# #? | | ?????????????????????????######## ##???## ##? | | ????????????????????????##&R"## #???# ##? | | ????????????????????????#RR# #" ##???# = ## | | ????????????????????????#&!# ##????# ! # | | ????????????????????????#*<# #" ######## # # | | ????????????????????????#@#### ## # # ##### | | ????????????????????????###??## #???? | | ??????????????????????????????# #???? | | ?????????????????????????????# ## # # #??? | | ?????????????????????????????### ###########??? | | ???????????????????????????????# ##????????????? | | ??????????????????????????????# ##?????????????? | | ??????????????????????????????# #??????????????? | | ??????????????????????????????# ??????????????? | | ??????????????????????????????# ??????????????? | | ??????????????????????????????# #??????????????? | | ??????????????????????????????#####??????????????? | | ?????????????????????????????????????????????????? | | ?????????????????????????????????????????????????? | | ?????????????????????????????????????????????????? | | ?????????????????????????????????????????????????? | | ?????????????????????????????????????????????????? | | ?????????????????????????????????????????????????? | | ?????????????????????????????????????????????????? | | ?????????????????????????????????????????????????? | | ?????????????????????????????????????????????????? | | ?????????????????????????????????????????????????? | | ?????????????????????????????????????????????????? | | ?????????????????????????????????????????????????? | | ?????????????????????????????????????????????????? | +----------------------------------------------------+ Best States ------------- Heat Dissipation 25 Energy Generation 14 Energy Capacity 250 Matter Stores 300 Matter Capacity 300 Sight Range 16 Terrain Scan Density 10 Evasion (%) 55 Item Schematics ----------------- None Robot Schematics ------------------ None Fabricated ------------ Nothing Alien Tech Used ----------------- None Achievements -------------- None Challenges ------------ None Game ------ Seed SignalStasisInterrupter Manual? 0 Play Time 00:27:04 Cumulative 4.8 hours Start 2024.04.03 @ 14:11:39 End 2024.04.03 @ 14:52:48 Sessions 1 Manual Loads 0 Difficulty Rogue Special Mode None Game No. 14 Rogue 14 Adventurer 0 Explorer 0 Win Type - Total 0 Types 0/0/0/0/0/0/0/0/0 Lore% 6 Gallery% 10 Achievement% 10 Wizard Run 0 Options --------- Layout 0 ASCII 0 Keyboard 0 Movement Mouse Keybinds 0 Fullscreen 1 Font 24/Smallcaps Map View 76x50 Zoom Use 0% Tactical HUD 1 Map Filters NONE Filters NONE Steam 1 RUN: ac9c6aac-03c8-41b5-86cc-fb698b367b2a